bitfinex/quotes_ETHUSD_20260106
["timestamp","ask_amount","ask_price","bid_price","bid_amount"]
[1767657999760,4.4706287,3222.0,3221.1,0.91606531]
[1767658000438,9.51333072,3222.4,3221.4,0.91406531]
[1767658000662,0.90985771,3222.3,3221.4,0.91406531]
[1767658002162,0.90985771,3222.1,3221.1,3.27943603]
[1767658002359,0.90985771,3222.1,3221.1,0.17490653]
[1767658002557,0.90985771,3222.1,3221.2,0.32794882]
[1767658002870,0.90985771,3222.1,3221.2,1.24201413]
[1767658003056,0.90985771,3222.1,3221.3,0.91406531]
[1767658004266,4.01346899,3222.1,3221.3,0.91406531]
[1767658004646,0.90985771,3222.1,3221.3,0.91406531]
[1767658004848,0.90985771,3222.1,3221.5,0.002]
[1767658005446,4.01343043,3222.1,3221.5,0.002]
[1767658005638,3.10348448,3222.2,3221.6,0.91406531]
[1767658005844,3.10339544,3222.3,3221.6,0.91406531]
[1767658008169,6.41,3222.4,3221.7,0.91406531]
[1767658008569,6.41,3222.4,3221.9,0.91406531]
[1767658008770,3.91502234,3222.7,3221.9,0.91406531]
[1767658016985,0.001,3222.4,3221.9,0.91406531]
[1767658017281,3.10291152,3222.8,3222.4,0.94206027]
[1767658017590,0.31029115,3222.7,3221.9,0.94206027]
[1767658017763,3.10291152,3222.8,3221.9,0.94206027]
[1767658018493,7.16171101,3223.0,3221.9,0.94206027]
[1767658019667,0.95620959,3222.9,3221.9,0.94206027]
[1767658020574,3.10289189,3222.8,3221.9,0.94206027]
[1767658020977,3.10289189,3222.8,3221.9,0.93359225]
[1767658021176,3.10289189,3222.8,3222.1,0.95441807]
[1767658021592,3.10282999,3222.9,3222.1,0.95441807]
[1767658021974,6.41,3223.1,3222.1,0.95441807]
[1767658022177,7.21075329,3223.2,3222.1,0.95441807]
[1767658022573,7.21075329,3223.2,3222.3,0.95441807]
[1767658022791,11.52092791,3223.2,3222.3,0.95441807]
[1767658023167,0.80075329,3223.2,3222.3,0.95441807]
[1767658024714,0.80075329,3223.2,3222.4,3.10327706]
[1767658024872,0.80075329,3223.2,3222.5,0.95441807]
[1767658027427,0.80075329,3223.2,3221.6,3.10398651]
[1767658027428,0.95015893,3223.1,3221.6,0.95441807]
[1767658027597,0.95015893,3222.9,3221.4,0.95441807]
[1767658027796,1.1058489,3223.0,3221.4,0.95441807]
[1767658027797,0.95015893,3222.7,3221.4,0.95441807]
[1767658029725,0.95015893,3222.5,3221.4,0.95441807]
[1767658030103,0.95015893,3222.5,3221.1,0.002]
[1767658030303,0.95015893,3222.5,3220.8,0.95339188]
[1767658033023,0.95015893,3222.3,3220.8,0.95339188]
[1767658033229,0.95015893,3222.1,3220.8,0.95339188]
[1767658035630,0.95015893,3221.9,3220.8,0.95339188]
[1767658035818,0.95015893,3221.9,3220.4,0.95641807]
[1767658036013,0.95015893,3221.8,3220.4,0.95641807]
[1767658036328,0.95015893,3221.6,3220.4,0.95641807]
[1767658036622,0.812,3221.7,3220.4,0.95641807]
[1767658036623,0.95015893,3221.4,3220.4,0.95641807]
[1767658037016,0.95015893,3221.4,3220.4,0.002]
[1767658037720,0.95015893,3221.2,3220.4,0.002]
[1767658038119,0.95015893,3221.2,3220.4,0.95641807]
[1767658038823,0.95015893,3221.2,3220.4,0.002]
[1767658039019,0.95015893,3221.0,3220.4,0.002]
[1767658039527,0.95015893,3220.8,3219.9,1e-08]
[1767658039735,0.95015893,3220.4,3219.9,1e-08]
[1767658040660,1.44964293,3221.1,3219.9,0.95441808]
[1767658040841,0.95015893,3220.9,3219.9,0.95441808]
[1767658041160,0.95015893,3220.7,3219.9,0.95441808]
[1767658041864,3.10501148,3220.6,3219.9,0.95441808]
[1767658042370,0.95015893,3220.5,3219.9,1e-08]
[1767658043949,0.95015893,3220.3,3219.2,1.76741807]
[1767658044268,0.95015893,3220.1,3219.2,0.95441807]
[1767658044472,0.812,3220.2,3219.2,0.95441807]
[1767658044867,1.76215893,3220.2,3219.2,0.95441807]
[1767658045675,0.95015893,3220.1,3219.2,0.95441807]
[1767658045981,3.10568651,3219.9,3219.1,0.002]
[1767658046192,0.95015893,3219.8,3219.1,0.002]
[1767658046546,6.21137302,3219.9,3219.1,0.002]
[1767658046547,0.95015893,3219.6,3219.1,0.002]
[1767658046746,0.812,3219.7,3219.1,0.95641807]
[1767658046980,1.5143373,3219.7,3219.1,0.002]
[1767658047280,2.46449623,3219.7,3219.1,0.002]
[1767658047671,0.7023373,3219.7,3219.1,0.95641807]
[1767658047857,0.95015893,3219.9,3219.1,0.002]
[1767658048246,4.05594189,3219.8,3219.1,0.002]
[1767658048646,7.16172485,3219.8,3219.1,0.002]
[1767658049294,0.95015893,3219.7,3219.1,0.002]
[1767658049477,0.71617249,3219.6,3219.1,0.002]
[1767658049793,3.10552366,3220.1,3219.1,0.95641807]
[1767658049946,0.95015893,3220.3,3219.1,0.95641807]
[1767658050149,0.812,3220.2,3219.3,0.95441807]
[1767658051492,0.812,3220.1,3219.3,0.95441807]
[1767658052053,3.10559006,3220.0,3219.1,0.97315194]
[1767658052286,0.812,3220.1,3219.1,0.97315194]
[1767658052877,0.812,3220.1,3219.6,0.97315194]
[1767658053077,0.813,3220.1,3219.6,0.97315194]
[1767658053283,3.91850774,3220.1,3219.6,0.002]
[1767658053484,1.39138131,3220.0,3219.6,0.002]
[1767658053795,0.90866412,3219.9,3219.3,0.002]
[1767658054158,3.10578296,3219.8,3219.3,0.002]
[1767658054358,7.12023004,3219.8,3219.3,0.002]
[1767658054585,0.90866412,3219.7,3219.3,0.002]
[1767658055154,1.39138131,3220.0,3219.3,0.002]
[1767658055379,3.10654992,3220.1,3219.3,0.97315194]
[1767658055580,3.91854992,3220.1,3219.3,0.97315194]
[1767658055775,3.10654992,3220.1,3219.3,0.97315194]
[1767658056379,6.21209984,3220.1,3219.3,0.97315194]
[1767658056682,7.12076396,3220.1,3219.3,0.97315194]
[1767658056878,7.12076396,3220.1,3219.1,0.002]
[1767658056879,0.90866412,3219.9,3219.1,0.002]
[1767658058277,7.12023004,3219.8,3219.1,0.002]
[1767658058479,0.812,3219.7,3219.1,0.002]
[1767658058983,0.90866412,3219.6,3218.5,0.97115194]
[1767658059284,0.90866412,3219.5,3218.5,0.97115194]
[1767658059469,0.90866412,3219.5,3218.2,0.814]
[1767658059865,0.90866412,3219.5,3218.2,0.764]
[1767658060069,0.90866412,3219.5,3218.3,3.10715768]
[1767658060271,0.90866412,3219.4,3218.4,0.38711577]
[1767658060489,0.90866412,3219.3,3218.2,3.10732707]
[1767658060668,0.90866412,3219.3,3218.2,6.21465414]
[1767658060859,0.90866412,3219.2,3218.2,7.18580608]
[1767658061271,0.90866412,3219.5,3218.3,0.97115194]
[1767658061603,0.90866412,3219.5,3218.5,0.97115194]
[1767658062187,0.812,3219.7,3218.5,0.97115194]
[1767658062368,3.10597589,3219.6,3218.5,0.97115194]
[1767658062567,6.21195178,3219.6,3218.5,0.97115194]
[1767658062768,0.90866412,3219.5,3218.5,0.97115194]
[1767658062967,1.70192571,3219.5,3218.5,0.97115194]
[1767658064402,3.10616885,3219.4,3218.5,0.97115194]
[1767658065400,3.10616885,3219.4,3218.8,0.002]
[1767658067793,4.80804075,3219.5,3218.8,0.002]
[1767658067993,1.70192571,3219.5,3218.8,0.002]
[1767658068192,0.812,3219.4,3218.8,0.002]
[1767658068968,0.90966412,3219.8,3218.8,1.00421941]
[1767658069197,0.812,3219.5,3218.8,0.97315194]
[1767658070773,3.9180733,3219.5,3218.8,0.97315194]
[1767658074581,7.95948876,3219.5,3218.8,0.97315194]
[1767658074893,3.10626533,3219.3,3218.8,0.002]
[1767658076608,4.837506,3219.4,3218.8,0.002]
[1767658077203,0.79594888,3219.4,3218.8,0.91130516]
[1767658077498,3.90212246,3219.4,3218.8,0.91130516]
[1767658078196,7.00829604,3219.4,3218.8,0.91130516]
[1767658078494,0.001,3219.2,3218.8,0.91130516]
[1767658085213,0.001,3219.2,3218.8,0.002]
[1767658089797,0.001,3218.9,3218.8,0.002]
[1767658092293,0.001,3218.9,3218.8,0.92496351]
[1767658092594,0.001,3218.9,3218.8,0.002]
[1767658097638,0.001,3218.9,3218.8,0.92496351]
[1767658099295,0.001,3218.9,3218.8,0.002]
[1767658100809,0.001,3219.2,3218.8,0.002]
[1767658101329,0.95629384,3219.2,3218.8,0.002]
[1767658101534,0.001,3218.9,3218.8,0.002]
[1767658101714,0.95629384,3219.2,3218.8,0.002]
[1767658106316,0.001,3219.2,3218.8,0.002]
[1767658106843,0.001,3219.2,3218.8,0.92496351]
[1767658107216,1.76829384,3219.9,3219.2,0.92296351]
[1767658107423,3.10683337,3219.8,3219.2,0.92296351]
[1767658107724,0.001,3219.8,3219.2,0.92296351]
[1767658109247,0.95629384,3219.8,3219.2,0.92296351]
[1767658109816,4.06209344,3219.8,3219.2,0.92296351]
[1767658110428,0.001,3219.8,3219.1,0.92296351]
[1767658110632,0.001,3219.8,3219.3,0.92296351]
[1767658112263,0.98402605,3219.8,3218.8,0.002]
[1767658113348,0.98302605,3219.4,3218.8,0.002]
[1767658113544,0.98302605,3219.3,3218.8,0.002]
[1767658113752,4.08938787,3219.2,3218.8,0.002]
[1767658115149,0.98302605,3219.1,3218.8,0.002]
[1767658116048,4.08949588,3219.1,3218.8,0.002]
[1767658117754,0.98302605,3219.1,3218.8,0.002]
[1767658118257,3.10639781,3219.2,3218.8,0.002]
[1767658118422,3.10639781,3219.2,3218.5,0.002]
[1767658118423,1.4099387,3219.1,3218.5,0.00098187]
[1767658119448,0.98302605,3219.0,3218.5,0.00098187]
[1767658120063,0.42691265,3219.1,3218.5,0.00098187]
[1767658120363,4.5164225,3219.1,3218.5,0.00098187]
[1767658120538,0.45164225,3219.0,3218.5,0.00098187]
[1767658122355,1.4346683,3219.0,3218.5,0.00098187]
[1767658122557,0.98302605,3218.9,3218.5,0.00098187]
[1767658123261,3.10648175,3219.1,3218.5,0.00098187]
[1767658123559,4.0895078,3219.1,3218.5,0.00098187]
[1767658123760,0.98302605,3219.0,3218.5,0.00098187]
[1767658124057,3.10648175,3219.1,3218.5,0.00098187]
[1767658124241,4.0895078,3219.1,3218.5,0.00098187]
[1767658125060,0.98302605,3219.0,3218.8,0.002]
[1767658125265,0.98302605,3219.1,3218.8,0.002]
[1767658125455,0.98302605,3219.0,3218.5,0.00098187]
[1767658125653,1.72057135,3219.1,3218.5,0.00098187]
[1767658126639,0.98302605,3218.9,3218.5,0.00098187]
[1767658127548,3.10655483,3219.0,3218.5,0.00098187]
[1767658127750,0.98302605,3219.0,3218.5,0.00098187]
[1767658128356,6.9505431,3219.1,3218.5,0.00098187]
[1767658128744,0.79335692,3219.0,3218.5,0.00098187]
[1767658129554,0.98302605,3218.9,3218.5,0.00098187]
[1767658130160,0.98302605,3218.7,3218.0,0.202]
[1767658130471,0.98302605,3218.7,3218.0,0.04898187]
[1767658130672,0.98302605,3218.5,3217.8,0.67758613]
[1767658130879,0.98302605,3218.3,3217.5,0.94644345]
[1767658131344,1.79602605,3218.3,3217.5,0.94644345]
[1767658131779,0.98302605,3218.2,3217.5,0.94644345]
[1767658132364,1.79602605,3218.2,3217.5,0.94644345]
[1767658132556,2.04759773,3218.2,3217.5,0.94644345]
[1767658132760,3.10742363,3218.1,3217.5,0.94644345]
[1767658132951,3.10542364,3218.1,3217.5,0.94644345]
[1767658133148,0.98302605,3218.0,3217.5,0.003]
[1767658133353,5.15495634,3218.2,3217.5,0.94644345]
[1767658133554,2.04759773,3218.2,3217.5,0.94644345]
[1767658133771,4.17192339,3218.2,3217.5,0.94644345]
[1767658134668,4.03050857,3218.1,3217.5,0.003]
[1767658134867,4.44770091,3218.1,3217.5,0.003]
[1767658135874,0.92302287,3218.0,3217.5,0.003]
[1767658136477,0.92302287,3218.0,3217.2,2.623e-05]
[1767658136673,0.92302287,3217.8,3217.2,2.623e-05]
[1767658136876,0.71382564,3217.8,3217.2,2.623e-05]
[1767658137052,0.71382564,3217.8,3217.2,0.90378939]
[1767658137249,0.92302287,3218.1,3217.2,2.623e-05]
[1767658137448,0.001,3218.2,3217.2,2.623e-05]
[1767658137675,0.001,3218.2,3217.6,0.90376316]
[1767658144888,0.9996132,3218.2,3217.5,0.002]
[1767658146080,0.001,3218.2,3217.5,0.97106481]
[1767658147199,0.9996132,3218.2,3217.5,0.002]
[1767658147666,1.41030369,3218.2,3217.5,0.002]
[1767658147866,4.51766517,3218.2,3217.5,0.002]
[1767658148066,4.10697468,3218.2,3217.5,0.002]
[1767658149088,0.9986132,3218.1,3217.5,0.002]
[1767658149467,0.001,3217.9,3217.5,0.002]
[1767658150794,0.9996132,3217.9,3217.5,0.002]
[1767658151489,0.9986132,3217.8,3217.5,0.002]
[1767658151891,0.72244868,3217.9,3217.5,0.002]
[1767658152490,1.72106188,3217.9,3217.5,0.002]
[1767658152795,4.82874622,3217.9,3217.5,0.002]
[1767658153296,0.9986132,3217.8,3217.5,0.002]
[1767658155795,3.83006828,3217.9,3217.5,0.002]
[1767658155975,0.72244868,3217.9,3217.5,0.002]
[1767658156174,3.83008536,3217.9,3217.5,0.002]
[1767658156481,4.82869856,3217.9,3217.5,0.002]
[1767658157474,0.793622,3217.8,3217.5,0.002]
[1767658157676,4.10724988,3217.9,3217.5,0.002]
[1767658158670,0.001,3218.2,3217.5,0.97106481]
[1767658158880,0.001,3218.2,3217.7,0.96906481]
[1767658159203,0.001,3218.2,3217.7,0.91906481]
[1767658161378,0.9996132,3218.2,3217.5,0.002]
[1767658161701,0.18126132,3218.1,3217.5,0.002]
[1767658161999,1.17987452,3218.1,3217.5,0.002]
[1767658162196,0.001,3217.9,3217.5,0.002]
[1767658162501,0.001,3217.9,3217.2,0.85706752]
[1767658162670,0.9996132,3217.9,3217.2,0.85706752]
[1767658163271,3.10771334,3217.8,3217.2,0.85706752]
[1767658163796,0.72148686,3217.8,3217.2,0.85706752]
[1767658166102,0.9996132,3218.2,3217.6,4.05220009]
[1767658166286,4.10696416,3218.2,3217.4,0.96906481]
[1767658167182,7.21431512,3218.2,3217.4,0.96906481]
[1767658167381,0.9986132,3218.1,3217.3,4.05220009]
[1767658167586,3.10752019,3218.0,3217.3,4.05220009]
[1767658167786,0.9986132,3217.9,3217.2,0.96906481]
[1767658167990,0.9986132,3217.9,3217.0,5.0212649]
[1767658169116,0.9986132,3217.9,3217.1,0.96906481]
[1767658169314,0.93157142,3218.1,3217.4,0.96906481]
[1767658169315,3.10746155,3218.1,3217.4,0.96906481]
[1767658169491,3.10746155,3218.1,3217.3,4.05220009]
[1767658169492,0.9986132,3218.0,3217.3,4.05220009]
[1767658169825,0.9986132,3218.0,3217.2,4.55432658]
[1767658170617,0.9986132,3217.9,3217.2,4.55432658]
[1767658170908,0.9986132,3217.9,3217.3,0.55233914]
[1767658172720,4.10628453,3217.9,3217.3,0.55233914]
[1767658173799,4.10728453,3217.9,3217.3,0.55233914]
[1767658173999,3.10867133,3217.9,3217.3,0.55233914]
[1767658174216,3.10867133,3217.9,3217.3,1.5271875]
[1767658174619,0.001,3217.9,3217.3,1.5271875]
[1767658175652,0.001,3217.9,3217.3,0.97484836]
[1767658179752,0.001,3218.2,3217.7,0.97484836]
[1767658179916,0.001,3218.2,3217.5,5.02704845]
[1767658180117,0.001,3218.2,3217.6,0.97484836]
[1767658181759,3.10742363,3218.1,3217.6,0.97484836]
[1767658181944,0.94119486,3218.0,3217.3,0.814]
[1767658182141,0.94119486,3218.0,3217.2,5.84104845]
[1767658184438,3.10761676,3217.9,3217.2,5.84104845]
[1767658184646,4.04881162,3217.9,3217.2,5.84104845]
[1767658185917,4.04881162,3217.9,3217.5,0.002]
[1767658186220,4.83601461,3217.9,3217.5,0.002]
[1767658188421,1.72839785,3217.9,3217.5,0.002]
[1767658188621,0.89811314,3217.9,3217.5,0.002]
[1767658188821,4.00573198,3217.9,3217.5,0.002]
[1767658189670,3.10761884,3217.9,3217.5,0.002]
[1767658189826,3.10756151,3218.0,3217.5,0.002]
[1767658190029,3.10746355,3218.1,3217.5,0.97684836]
[1767658190745,3.10832707,3218.2,3217.5,0.97684836]
[1767658191224,3.05832707,3218.2,3217.5,0.97684836]
[1767658191632,6.16565414,3218.2,3217.5,0.97684836]
[1767658192247,8.4585339,3218.2,3217.5,0.97684836]
[1767658192549,0.94119486,3218.1,3217.5,0.002]
[1767658192717,3.10752019,3218.0,3217.5,0.002]
[1767658194550,4.1049585,3218.0,3217.5,0.002]
[1767658195746,0.99743831,3217.9,3217.3,0.814]
[1767658198182,4.10505507,3217.9,3217.3,0.814]
[1767658198547,4.10505507,3217.9,3217.5,0.002]
[1767658199629,0.99743831,3217.9,3217.5,0.002]
[1767658199825,0.99743831,3218.1,3217.5,0.002]
[1767658200046,0.99743831,3218.1,3217.5,0.91433525]
[1767658200221,9.51726193,3218.3,3217.5,1.08716878]
[1767658200427,3.10737221,3218.2,3217.5,1.08716878]
[1767658200926,7.18237178,3218.2,3217.5,1.08716878]
[1767658201123,0.96762736,3218.1,3217.5,0.002]
[1767658201329,0.96762736,3218.1,3217.5,0.816]
[1767658201940,0.96762736,3218.1,3217.5,0.002]
[1767658203036,3.10752019,3218.0,3217.5,0.002]
[1767658204851,0.96762736,3217.9,3217.3,0.814]
[1767658205036,4.07527452,3217.9,3217.3,0.814]
[1767658205476,0.96762736,3217.8,3217.3,0.814]
[1767658208167,0.96762736,3217.8,3217.1,0.002]
[1767658208332,0.96762736,3217.8,3217.2,0.814]
[1767658209969,0.96862736,3217.5,3217.2,0.814]
[1767658210331,0.001,3217.5,3217.2,1.80102626]
[1767658210534,0.001,3217.5,3217.3,0.98702626]
[1767658211743,0.001,3217.5,3217.3,1.80102626]
[1767658212259,0.001,3217.5,3217.3,1.98132889]
[1767658215454,0.96762736,3218.2,3217.3,0.99430263]
[1767658215649,0.96762736,3218.7,3217.4,0.98702626]
[1767658215848,3.10674785,3218.8,3217.5,0.50895246]
[1767658215849,0.96762736,3218.5,3217.5,0.50895246]
[1767658217584,0.96762736,3218.4,3217.5,0.50895246]
[1767658218681,0.96762736,3218.4,3217.5,1.49597872]
[1767658219682,0.95091701,3218.3,3217.5,1.49597872]
[1767658221686,0.001,3218.2,3217.5,4.60397408]
[1767658221868,0.001,3218.2,3217.6,0.46039741]
[1767658225181,0.001,3218.2,3217.6,1.44742367]
[1767658226787,0.96862736,3218.2,3217.6,0.98702626]
[1767658226989,0.96662737,3218.2,3217.6,0.98702626]
[1767658227191,0.96662737,3218.2,3217.5,0.50895246]
[1767658227391,0.96462738,3218.2,3217.5,0.50895246]
[1767658227574,0.96462738,3218.2,3217.5,1.49597872]
[1767658227896,4.07467896,3218.5,3217.6,0.98702626]
[1767658228063,0.96762736,3218.4,3217.6,0.98702626]
[1767658228904,0.96762736,3218.3,3217.6,0.98702626]
[1767658231406,4.07487504,3218.3,3217.6,0.98702626]
[1767658231572,0.96762736,3218.3,3217.6,0.98702626]
[1767658233381,0.96762736,3218.3,3217.8,0.002]
[1767658233576,1.44692506,3218.3,3217.8,0.002]
[1767658235105,0.96762736,3218.3,3217.8,0.002]
[1767658244503,4.07488465,3218.3,3217.8,0.002]
[1767658244801,0.96762736,3218.3,3217.8,0.002]
[1767658245129,1.89907151,3218.3,3217.8,0.002]
[1767658246833,0.95746551,3218.2,3217.8,0.002]
[1767658247527,0.95746551,3218.2,3217.3,4.10245916]
[1767658247528,0.95746551,3217.8,3217.1,0.002]
[1767658247730,0.95746551,3217.7,3216.8,0.003]
[1767658248209,0.74906882,3217.8,3216.8,0.003]
[1767658248210,0.95746551,3217.5,3216.8,0.003]
[1767658248411,1.14638714,3217.5,3216.8,0.003]
[1767658248606,0.18892163,3217.5,3216.8,0.98426378]
[1767658249011,3.29692905,3217.5,3216.8,0.98426378]
[1767658250242,3.29692905,3217.5,3216.5,0.98326378]
[1767658250243,0.95746551,3217.4,3216.5,0.98326378]
[1767658250529,1.63037047,3217.3,3216.5,0.98326378]
[1767658250958,4.73866336,3217.3,3216.5,0.98326378]
[1767658253455,0.95746551,3217.2,3216.5,0.002]
[1767658253639,3.78119785,3217.3,3216.5,0.98326378]
[1767658253845,0.95746551,3217.2,3216.5,0.002]
[1767658254345,0.93151996,3217.2,3216.5,0.002]
[1767658254570,0.93151996,3217.1,3216.5,0.002]
[1767658255047,0.56445207,3217.2,3216.5,0.91149523]
[1767658255357,0.93151996,3217.1,3216.5,0.002]
[1767658255552,3.67275057,3217.2,3216.5,0.002]
[1767658255747,3.67275057,3217.2,3216.5,0.91149523]
[1767658256055,0.56445207,3217.2,3216.5,0.91149523]
[1767658256656,1.49597203,3217.2,3216.5,0.91149523]
[1767658256851,0.93151996,3217.0,3216.5,0.816]
[1767658257054,0.93151996,3217.0,3216.5,0.002]
[1767658257255,0.93151996,3217.7,3216.6,0.90949523]
[1767658257556,0.93151996,3217.5,3216.8,0.002]
[1767658259676,6.2161994,3217.4,3216.8,0.91149523]
[1767658259850,0.71477194,3217.3,3216.8,0.91149523]
[1767658262080,3.10829292,3217.2,3216.8,0.91149523]
[1767658262474,4.09186352,3217.2,3216.8,0.002]
[1767658263261,0.9835706,3217.1,3216.5,0.99220181]
[1767658263563,0.72001564,3217.0,3216.5,0.002]
[1767658264764,4.09199447,3217.1,3216.5,0.002]
[1767658265139,4.09199447,3217.1,3216.5,0.99220181]
[1767658266684,0.9835706,3217.0,3216.5,0.002]
[1767658268675,6.21716558,3216.9,3216.5,0.002]
[1767658268854,7.20073618,3216.9,3216.5,0.002]
[1767658269278,0.72007362,3216.8,3216.5,0.002]
[1767658269486,0.72007362,3216.8,3216.2,0.99520181]
[1767658269687,0.72107362,3216.8,3216.2,0.99520181]
[1767658270956,3.82979154,3216.8,3216.2,0.99520181]
[1767658271576,0.9835706,3216.7,3216.2,0.005]
[1767658271774,0.813,3217.5,3216.2,5.04983012]
[1767658272086,1.12480418,3217.5,3216.4,0.99020181]
[1767658272288,1.29437478,3217.5,3216.4,0.99020181]
[1767658272862,0.9835706,3217.4,3216.4,0.99020181]
[1767658273089,6.21639262,3217.3,3216.4,0.99020181]
[1767658273277,6.21639262,3217.3,3216.5,0.99020181]
[1767658274201,3.10819631,3217.3,3216.5,0.99020181]
[1767658274603,6.21639262,3217.3,3216.5,0.99020181]
[1767658275877,3.10791043,3217.6,3216.6,5.04483012]
[1767658276084,3.10791043,3217.6,3216.8,0.99020181]
[1767658276687,1.91526063,3218.0,3216.8,0.99020181]
[1767658276688,3.10761676,3217.9,3216.8,0.99020181]
[1767658276890,6.2152391,3217.9,3216.8,0.99020181]
[1767658277093,0.93163506,3218.2,3216.9,0.99020181]
[1767658277306,3.10744281,3218.1,3217.1,0.99020181]
[1767658277500,3.10732707,3218.2,3217.3,0.99020181]
[1767658277983,0.93154538,3218.5,3217.3,0.99020181]
[1767658278186,3.10715428,3218.4,3217.2,0.18042018]
[1767658278409,0.9835706,3218.3,3217.2,3.28869639]
[1767658278609,7.19787916,3218.4,3217.3,0.99020181]
[1767658279194,4.09072488,3218.4,3217.3,0.99020181]
[1767658279491,4.09072488,3218.4,3217.4,0.99020181]
[1767658279696,7.19787916,3218.4,3217.5,1.80420181]
[1767658280029,7.19787916,3218.4,3217.6,0.18042018]
[1767658280784,4.09072488,3218.4,3217.6,0.18042018]
[1767658280994,0.9835706,3218.4,3217.6,1.17062199]
[1767658281315,0.9835706,3218.6,3217.6,1.17062199]
[1767658281620,3.10703743,3218.5,3217.6,1.17062199]
[1767658281820,4.09060803,3218.5,3217.6,1.13774654]
[1767658282023,0.9835706,3218.4,3217.6,1.13774654]
[1767658282225,0.001,3218.1,3217.6,1.13774654]
[1767658283399,0.001,3218.1,3217.0,3.10845751]
[1767658283400,0.9835706,3218.0,3216.9,0.83487543]
[1767658283599,3.10761676,3217.9,3217.2,0.814]
[1767658283917,0.9835706,3217.8,3217.2,0.814]
[1767658284815,3.10761676,3217.9,3217.2,0.814]
[1767658285015,3.10761676,3217.9,3217.2,1.80420181]
[1767658285403,0.001,3218.1,3217.3,0.99020181]
[1767658285805,0.001,3218.1,3217.3,1.17062199]
[1767658286933,0.001,3218.1,3217.4,0.99020181]
[1767658288127,0.001,3218.1,3217.4,0.814]
[1767658288335,0.9845706,3218.1,3217.1,0.99020181]
[1767658288629,0.9845706,3218.1,3217.2,0.814]
[1767658288927,1.12319979,3218.0,3217.2,0.814]
[1767658290136,3.10761676,3217.9,3217.2,0.814]
[1767658290509,4.23074786,3218.0,3217.3,0.99020181]
[1767658293637,7.33829593,3218.0,3217.3,0.99020181]
[1767658293839,4.23074786,3218.0,3217.3,0.99020181]
[1767658294013,7.33829593,3218.0,3217.6,0.002]
[1767658294213,0.73392959,3217.9,3217.6,0.002]
[1767658294437,3.10771334,3217.8,3217.6,0.002]
[1767658294640,3.8415582,3217.9,3217.6,0.002]
[1767658295338,6.94918681,3217.9,3217.6,0.002]
[1767658295963,0.91656067,3217.8,3216.8,0.002]
[1767658296171,0.91656067,3217.7,3216.8,0.002]
[1767658296448,6.21581302,3217.6,3216.8,0.002]
[1767658296623,0.91656067,3217.5,3216.8,0.002]
[1767658297624,6.21581302,3217.6,3216.5,0.002]
[1767658297625,0.91656067,3217.2,3216.5,0.002]
[1767658297861,0.91656067,3216.9,3216.2,0.005]
[1767658298425,3.10867943,3216.8,3216.2,0.005]
[1767658299155,6.21735886,3216.8,3216.2,0.005]
[1767658301558,6.21735886,3216.8,3216.1,0.94332947]
[1767658303039,3.10867943,3216.8,3216.1,0.94332947]
[1767658303239,3.10867943,3216.8,3216.1,1.11946242]
[1767658304673,6.21697232,3217.0,3216.1,1.11946242]
[1767658304970,6.21697232,3217.0,3216.1,0.94332947]
[1767658306052,6.21697232,3217.0,3216.4,0.002]
[1767658309372,7.13353299,3217.0,3216.4,0.002]
[1767658310373,0.91656067,3216.9,3216.4,0.002]
[1767658311390,0.91656067,3216.9,3216.2,0.93390377]
[1767658311967,0.91656067,3216.9,3216.3,0.814]
[1767658312664,6.21697232,3217.0,3216.4,0.94535566]
[1767658312866,6.21697232,3217.0,3216.4,0.89535566]
[1767658315591,7.14251293,3217.0,3216.4,0.89535566]
[1767658318598,0.001,3216.7,3216.4,0.89535566]
[1767658319894,0.001,3216.7,3216.3,0.814]
[1767658319895,0.001,3216.7,3216.3,0.65937947]
[1767658320490,0.001,3216.7,3216.3,1.6080454]
[1767658321785,0.001,3216.7,3216.3,0.94866593]
[1767658322197,0.90289735,3216.7,3216.0,0.002]
[1767658322710,0.90289735,3216.7,3216.1,0.17797721]
[1767658323780,0.90289735,3216.7,3216.0,0.002]
[1767658324204,0.90189735,3216.5,3216.0,0.002]
[1767658324921,0.90189735,3216.5,3215.9,0.002]
[1767658326632,0.90189735,3216.3,3215.2,0.002]
[1767658327129,0.90189735,3216.3,3215.2,0.96377209]
[1767658328997,0.90189735,3216.1,3215.2,0.96377209]
[1767658330420,0.90189735,3216.1,3215.3,0.814]
[1767658330703,6.21951874,3216.2,3215.3,0.814]
[1767658330704,3.11025937,3216.2,3215.4,0.96177209]
[1767658331044,0.001,3216.2,3215.6,0.96177209]
[1767658333005,0.90289735,3216.2,3215.5,0.17757721]
[1767658333200,0.90289735,3216.2,3214.8,0.002]
[1767658333201,0.90189735,3215.7,3214.8,0.002]
[1767658333412,0.90189735,3215.6,3214.8,0.002]
[1767658335235,7.12176983,3215.5,3214.8,0.002]
[1767658336636,0.90189735,3215.4,3214.8,0.002]
[1767658336820,0.71217698,3215.3,3214.8,0.002]
[1767658337338,3.11022642,3215.2,3214.8,0.002]
[1767658339340,3.82234605,3215.3,3214.8,0.002]
[1767658339820,0.90189735,3215.4,3214.8,0.002]
[1767658340342,4.01196143,3215.4,3214.8,0.002]
[1767658340715,0.90189735,3215.3,3214.8,0.002]
[1767658340915,0.90189735,3215.3,3214.4,0.95778844]
[1767658341618,4.01212377,3215.2,3214.4,0.95778844]
[1767658341833,4.72435272,3215.2,3214.4,0.9567824]
[1767658342031,4.72435272,3215.2,3214.8,0.002]
[1767658343622,3.82245537,3215.2,3214.8,0.002]
[1767658343825,3.11022642,3215.2,3214.8,0.002]
[1767658344651,4.01207052,3215.3,3214.8,0.002]
[1767658344944,0.90189735,3215.2,3214.8,0.002]
[1767658345531,3.11017317,3215.3,3214.8,0.002]
[1767658345722,3.11004593,3215.4,3214.8,0.002]
[1767658345723,6.22009186,3215.4,3214.8,0.002]
[1767658345931,7.01369078,3215.4,3214.8,0.002]
[1767658347047,7.91558813,3215.4,3214.8,0.002]
[1767658349334,0.90189735,3215.7,3214.8,0.96377209]
[1767658349642,3.1098522,3215.6,3214.8,0.96377209]
[1767658350223,6.2197044,3215.6,3214.8,0.96377209]
[1767658351249,0.90189735,3215.7,3214.8,0.96377209]
[1767658351548,7.14879148,3216.1,3214.9,0.94494206]
[1767658351761,3.11027741,3216.2,3215.1,0.94494206]